bitfinex/quotes_ETHUSD_20250721
["timestamp","ask_amount","ask_price","bid_price","bid_amount"]
[1753087260684,0.4860511,3793.5,3793.4,0.001]
[1753087260882,8.44213914,3793.5,3793.4,0.001]
[1753087261094,9.21638804,3793.5,3793.4,0.001]
[1753087261293,6.1272,3793.5,3793.4,0.001]
[1753087261493,0.55,3793.3,3792.7,0.001]
[1753087261706,7.01147456,3792.8,3792.7,0.001]
[1753087261873,11.80847456,3792.8,3792.7,0.001]
[1753087262206,7.46457456,3792.8,3792.7,0.001]
[1753087262506,12.25957456,3792.8,3792.7,0.001]
[1753087262806,9.619,3792.8,3792.7,0.001]
[1753087262972,4.828,3792.8,3792.7,0.001]
[1753087263309,4.86095718,3792.8,3792.7,0.001]
[1753087263607,9.64895718,3792.8,3792.7,0.001]
[1753087263792,6.066,3792.8,3792.7,0.001]
[1753087263972,1.278,3792.8,3792.7,2.63764407]
[1753087264303,0.03295544,3793.0,3792.8,2.63650978]
[1753087264512,5.6,3793.2,3792.7,0.001]
[1753087264719,4.779,3793.1,3792.7,0.001]
[1753087264876,4.78,3793.0,3792.8,0.8274]
[1753087265078,1.2831,3793.7,3792.7,0.001]
[1753087265079,0.4531,3793.4,3793.1,2.63636579]
[1753087265275,0.48605283,3793.3,3793.1,2.63636579]
[1753087265619,5.2291,3793.2,3792.7,0.001]
[1753087265829,0.03295457,3793.1,3792.9,2.63649248]
[1753087266017,5.2291,3793.2,3793.0,2.63643553]
[1753087266174,5.2291,3793.2,3792.7,0.001]
[1753087266175,5.2291,3793.2,3793.1,2.63636603]
[1753087266707,5.2291,3793.2,3792.7,0.001]
[1753087266896,0.48605457,3793.1,3792.8,2.63657456]
[1753087267106,0.48605457,3793.1,3792.9,2.63650504]
[1753087267411,0.03295457,3793.1,3792.9,2.63650333]
[1753087267622,0.4531,3793.0,3792.7,0.001]
[1753087267792,4.79395631,3792.9,3792.7,2.63764118]
[1753087268000,0.4531,3792.8,3792.7,2.63764118]
[1753087268179,1.0031,3792.8,3792.7,0.001]
[1753087268546,1.0031,3792.8,3792.7,2.63764407]
[1753087268899,4.761,3792.9,3792.8,2.63657456]
[1753087269404,4.761,3792.9,3792.7,0.001]
[1753087269405,5.2141,3792.9,3792.7,0.001]
[1753087269609,1.03605718,3792.8,3792.7,0.001]
[1753087269932,11.42163174,3792.8,3792.7,0.001]
[1753087270228,12.13977456,3792.8,3792.7,0.001]
[1753087271115,0.7537,3792.6,3787.6,0.8252]
[1753087271318,3.0,3789.9,3788.5,0.8252]
[1753087271533,3.0,3789.7,3789.2,0.1312]
[1753087271695,4.762,3789.6,3789.2,0.1312]
[1753087271899,4.762,3789.6,3789.4,2.63892875]
[1753087272099,4.762,3789.6,3789.2,0.1312]
[1753087272298,3.0,3789.7,3789.2,0.1312]
[1753087272588,4.79198501,3789.6,3789.2,0.1312]
[1753087273027,4.79198501,3789.6,3789.3,2.63897474]
[1753087273028,4.759,3789.6,3789.3,2.63897474]
[1753087273235,4.759,3789.6,3789.3,2.63900149]
[1753087273538,4.759,3789.6,3789.5,2.77007056]
[1753087273745,4.752,3789.6,3789.5,0.1312]
[1753087274039,4.752,3789.6,3789.5,2.77007056]
[1753087274242,4.752,3789.6,3789.5,0.1312]
[1753087274555,4.752,3789.6,3789.3,2.63898598]
[1753087274839,4.752,3789.6,3789.2,0.1312]
[1753087275040,0.1312,3789.8,3789.7,2.63873129]
[1753087275240,0.1312,3789.8,3789.5,2.63887056]
[1753087275241,4.744,3789.8,3789.6,0.1312]
[1753087275547,4.744,3789.8,3789.7,2.63873129]
[1753087275727,0.16417978,3790.2,3789.8,2.63864271]
[1753087276040,3.0,3790.0,3789.8,2.63864271]
[1753087276245,0.03298153,3790.0,3789.8,2.63864271]
[1753087276445,0.9836,3789.9,3789.0,2.63921879]
[1753087276750,4.735,3789.8,3789.7,2.63873129]
[1753087277098,4.735,3789.8,3789.6,2.63878728]
[1753087277099,4.76798327,3789.8,3789.6,2.63878728]
[1753087277541,5.20158327,3789.8,3789.5,2.63885081]
[1753087277845,5.75158327,3789.8,3789.7,2.63873129]
[1753087278152,5.31798327,3789.8,3789.7,2.63873129]
[1753087278343,5.31798327,3789.8,3789.5,2.63881836]
[1753087278513,5.31798327,3789.8,3789.6,2.63878666]
[1753087278710,5.31798327,3789.8,3789.5,2.63886593]
[1753087278931,0.9836,3789.7,3789.0,2.63918104]
[1753087279099,0.9836,3789.7,3789.0,0.1312]
[1753087279100,0.55,3789.5,3789.0,0.1312]
[1753087279297,0.55,3789.5,3788.8,0.1312]
[1753087279298,4.8512,3789.4,3788.8,0.1312]
[1753087279541,5.4012,3789.4,3789.3,2.63900984]
[1753087279912,5.3982,3789.4,3789.1,2.63914913]
[1753087280111,5.3982,3789.4,3789.3,2.63900984]
[1753087280512,4.8482,3789.4,3789.3,2.63900984]
[1753087280713,0.0329824,3789.9,3789.8,2.63866167]
[1753087280956,5.3912,3789.9,3789.8,2.6385941]
[1753087281806,0.1312,3789.9,3789.8,2.6385941]
[1753087282011,0.1312,3789.9,3789.8,2.63866167]
[1753087282012,4.703,3789.9,3789.8,2.63866167]
[1753087282252,4.702,3789.9,3789.8,2.63860208]
[1753087282460,5.1356,3789.9,3789.0,0.8073]
[1753087282617,0.55,3789.7,3788.6,0.8073]
[1753087282956,4.25618327,3789.8,3789.0,2.63919401]
[1753087282957,0.1312,3789.4,3789.0,2.63919401]
[1753087283119,5.1336,3789.3,3788.8,0.1312]
[1753087283316,5.1336,3789.3,3788.5,2.63952738]
[1753087283317,0.46658849,3789.2,3788.5,2.6395223]
[1753087283616,0.55,3789.0,3788.5,0.1312]
[1753087283946,3.46658849,3789.2,3788.0,2.63991024]
[1753087283947,0.1312,3788.5,3788.0,2.63991024]
[1753087284121,0.1312,3788.5,3787.9,0.1312]
[1753087284122,4.695,3788.4,3787.9,0.1312]
[1753087284507,0.46659633,3788.3,3787.4,0.8251]
[1753087284708,0.59779633,3788.3,3787.8,2.64000423]
[1753087284922,0.4336,3788.2,3787.7,0.132]
[1753087285143,4.694,3788.1,3787.7,0.132]
[1753087285529,0.46659894,3788.0,3787.5,2.64019603]
[1753087285754,4.694,3788.1,3788.0,2.63991552]
[1753087285924,0.03299371,3788.6,3788.0,0.1312]
[1753087286130,5.236,3788.5,3788.0,0.1312]
[1753087286350,0.46659545,3788.4,3787.9,2.63993583]
[1753087286561,0.55,3788.2,3787.3,0.8285]
[1753087286736,0.55,3788.0,3787.0,0.8285]
[1753087286945,0.16419981,3787.9,3787.3,0.132]
[1753087287138,0.55,3787.8,3787.3,0.132]
[1753087287337,0.682,3787.6,3787.4,2.64032209]
[1753087287566,4.68,3787.5,3787.4,2.64032209]
[1753087287770,5.1136,3787.5,3787.0,0.132]
[1753087287940,0.4336,3787.4,3787.2,2.64041355]
[1753087288270,0.55,3787.1,3786.7,0.132]
[1753087288568,5.14160765,3787.0,3786.8,2.64069834]
[1753087288783,4.70800765,3787.0,3786.9,2.64068235]
[1753087288968,4.674,3787.0,3786.7,2.64079216]
[1753087289170,4.674,3787.0,3786.9,2.64068235]
[1753087289331,0.132,3787.3,3786.7,2.64079216]
[1753087289332,0.682,3787.3,3787.2,2.64047317]
[1753087289537,5.352,3787.3,3787.2,2.64047317]
[1753087289851,5.22,3787.3,3787.2,2.64047317]
[1753087290253,5.6536,3787.3,3787.2,2.64047317]
[1753087290456,5.22,3787.3,3787.2,2.64047317]
[1753087290969,0.0330033,3787.5,3787.2,2.64047317]
[1753087290970,0.55,3787.5,3787.4,2.64033373]
[1753087291291,4.662,3787.5,3787.4,2.64033373]
[1753087291461,0.03299894,3788.0,3787.9,2.63998521]
[1753087291663,4.659,3788.0,3787.9,2.63998521]
[1753087292602,0.03299633,3788.3,3788.0,2.63984624]
[1753087292799,2.63864423,3789.9,3787.8,0.7739]
[1753087292800,4.653,3788.2,3787.8,0.7739]
[1753087293099,4.653,3788.2,3788.1,2.63984583]
[1753087293410,4.653,3788.2,3787.4,2.64032167]
[1753087293411,0.55,3788.1,3787.3,0.7762]
[1753087293610,0.58299807,3788.1,3788.0,2.63991552]
[1753087293768,0.55,3788.1,3788.0,2.63991552]
[1753087293970,0.03299371,3788.6,3787.4,2.64033373]
[1753087294171,0.03299284,3788.7,3788.6,2.63949743]
[1753087294411,0.46658675,3789.4,3788.7,2.63942777]
[1753087294598,1.25038675,3789.4,3788.8,2.6393581]
[1753087294793,1.25038675,3789.4,3788.2,0.7709]
[1753087294970,1.25038675,3789.4,3789.0,2.63917404]
[1753087295176,1.25038675,3789.4,3788.3,2.63969566]
[1753087295177,3.0,3789.2,3788.9,2.63923665]
[1753087295406,0.03298849,3789.2,3789.1,2.63914913]
[1753087295613,0.03298849,3789.2,3788.2,0.7709]
[1753087295614,5.10658849,3789.2,3788.2,0.7709]
[1753087295774,5.10658849,3789.2,3788.9,2.63926326]
[1753087295973,0.4336,3789.1,3788.9,2.63926326]
[1753087298018,4.629,3789.4,3789.3,2.63899095]
[1753087298326,4.629,3789.4,3787.8,0.8259]
[1753087298327,0.55,3789.1,3787.8,0.8259]
[1753087298506,5.09259023,3789.0,3788.6,2.63944746]
[1753087298670,4.65899023,3789.0,3788.6,2.63949106]
[1753087298871,0.9836,3788.9,3787.8,0.8259]
[1753087299083,0.03299197,3788.8,3788.7,2.63942777]
[1753087299312,4.623,3788.8,3788.7,2.63942777]
[1753087299680,4.623,3788.8,3788.6,2.63948011]
[1753087299975,0.03299284,3788.7,3788.5,2.63955489]
[1753087300195,0.46659284,3788.7,3788.6,2.63949743]
[1753087300739,0.46659284,3788.7,3787.8,0.8259]
[1753087300740,0.55,3788.6,3788.5,2.63956711]
[1753087301086,0.55,3788.7,3788.6,2.63949743]
[1753087301296,4.65599197,3788.8,3788.7,2.63942777]
[1753087301586,0.55,3788.7,3788.3,2.63965959]
[1753087301832,0.48409371,3788.6,3788.3,2.63965959]
[1753087302148,0.48409371,3788.6,3788.1,2.63983]
[1753087302149,0.55,3788.4,3788.1,2.63980138]
[1753087302321,0.1312,3788.1,3787.6,0.132]
[1753087302520,0.1312,3788.1,3787.0,1.1494]
[1753087302521,1.03409894,3788.0,3787.7,2.64010977]
[1753087302696,0.682,3787.8,3787.7,2.64010977]
[1753087302892,0.682,3787.8,3787.7,2.64012461]
[1753087303093,4.607,3787.9,3787.8,2.64005491]
[1753087303295,0.1312,3788.2,3788.1,2.63984583]
[1753087303492,8.9718778,3789.5,3788.7,2.63942777]
[1753087303493,0.7532,3788.8,3788.7,2.63942777]
[1753087303709,0.8844,3788.8,3788.6,2.6394828]
[1753087303936,0.1312,3788.8,3788.7,2.63942777]
[1753087304341,0.1312,3788.8,3788.3,2.63967828]
[1753087304342,4.599,3788.8,3788.3,2.63967828]
[1753087304502,4.599,3788.8,3788.7,2.63942777]
[1753087305914,0.1312,3789.2,3789.1,2.63914913]
[1753087306220,4.7222,3789.2,3789.1,2.63914913]
[1753087306594,4.7212,3789.2,3789.1,2.63914913]
[1753087307024,4.7212,3789.2,3789.0,2.63919771]
[1753087307229,0.03298936,3789.1,3789.0,2.63919771]
[1753087307742,4.7212,3789.2,3789.1,2.63914913]
[1753087307935,4.7212,3789.2,3788.7,2.63939163]
[1753087308097,0.48408936,3789.1,3789.0,2.63921879]
[1753087308435,5.35418849,3789.2,3789.1,2.63914913]
[1753087308732,6.3223,3789.2,3789.1,2.63914913]
[1753087308939,5.19,3789.2,3789.1,2.63914913]
[1753087309708,5.19,3789.2,3789.1,2.77034913]
[1753087309709,0.6,3789.2,3789.1,2.77034913]
[1753087309909,5.172,3789.2,3789.1,2.77034913]
[1753087311023,5.172,3789.2,3789.1,2.63914913]
[1753087311848,0.55,3789.1,3788.9,2.63928497]
[1753087312051,0.16418936,3789.1,3789.0,2.63921879]
[1753087312196,5.172,3789.2,3789.1,2.63914913]
[1753087312399,0.6,3789.2,3789.1,3.42734913]
[1753087312602,1e-08,3789.2,3789.1,4.29698592]
[1753087312901,1e-08,3789.2,3789.1,3.95518592]
[1753087313240,4.561,3789.4,3789.3,2.63900984]
[1753087314412,4.554,3790.3,3790.2,2.63838319]
[1753087316368,3.0,3791.1,3790.2,2.63838319]
[1753087316369,0.002,3791.3,3791.2,2.63768727]
[1753087316646,4.556,3791.3,3791.2,2.63768727]
[1753087317435,0.002,3791.3,3791.2,3.43978727]
[1753087317646,0.002,3791.3,3791.2,2.63768727]
[1753087319219,4.546,3791.3,3791.2,2.63768727]
[1753087320726,0.002,3791.3,3791.2,2.63768727]
[1753087320971,0.002,3791.3,3791.2,3.19424807]
[1753087321779,1e-08,3791.3,3791.2,3.5096712]
[1753087322525,1e-08,3791.3,3791.2,3.2990712]
[1753087323139,1e-08,3791.3,3791.2,3.6408712]
[1753087323583,1e-08,3791.3,3791.2,3.2990712]
[1753087323783,1e-08,3791.3,3791.2,3.32544807]
[1753087324095,1e-08,3791.3,3791.2,3.66724807]
[1753087324591,1e-08,3791.3,3791.2,3.6408712]
[1753087324795,1e-08,3791.3,3791.2,4.41854807]
[1753087325083,1e-08,3791.3,3791.2,7.3921712]
[1753087326155,1e-08,3791.3,3791.2,7.0503712]
[1753087326781,1e-08,3791.3,3791.2,4.0503712]
[1753087326946,1e-08,3791.3,3791.2,4.07674807]
[1753087327741,1e-08,3791.3,3791.2,4.0503712]
[1753087329286,1e-08,3791.3,3791.2,2.76888727]
[1753087330647,1e-08,3791.3,3791.2,2.79526414]
[1753087331685,1e-08,3791.3,3791.2,3.11068727]
[1753087332286,1e-08,3791.3,3791.2,2.76888727]
[1753087334861,1e-08,3791.3,3791.2,2.79526414]
[1753087335270,1e-08,3791.3,3791.2,2.76888727]
[1753087335580,1e-08,3791.3,3791.2,2.79526414]
[1753087336445,1e-08,3791.3,3791.2,2.76888727]
[1753087337191,0.42900001,3791.3,3791.2,2.63768727]
[1753087341907,0.55,3791.0,3790.7,2.63797608]
[1753087342067,0.16414487,3790.9,3790.7,2.63797608]
[1753087342271,1.7838,3790.8,3790.2,2.63831404]
[1753087342509,0.55,3790.6,3790.2,2.63831404]
[1753087342718,0.03294487,3790.5,3790.2,2.63831404]
[1753087342887,0.46194487,3790.5,3790.2,2.63831404]
[1753087343089,0.429,3790.4,3790.1,2.63842915]
[1753087343308,0.03294487,3790.5,3790.1,2.63842915]
[1753087343500,0.429,3790.3,3789.9,2.63857893]
[1753087343812,0.429,3790.2,3790.1,2.63840204]
[1753087344214,0.429,3790.2,3789.8,2.63861634]
[1753087344413,0.55,3790.4,3789.8,2.63861634]
[1753087344618,0.429,3790.1,3789.9,2.63859204]
[1753087345017,0.55,3790.4,3790.0,2.63852232]
[1753087345181,0.03294487,3790.3,3790.0,2.63852232]
[1753087345505,0.46194487,3790.3,3790.0,2.63852232]
[1753087345706,0.429,3790.2,3790.0,2.63852232]
[1753087346018,0.429,3790.1,3790.0,2.63852232]
[1753087346608,1.324,3790.0,3789.4,2.63888369]
[1753087346783,0.55,3789.8,3789.0,2.63914959]
[1753087346983,0.55,3789.6,3789.2,2.63906349]
[1753087347306,0.55,3789.4,3789.2,2.63906349]
[1753087347493,0.46194487,3789.3,3789.2,2.63906349]
[1753087348216,0.55,3789.1,3788.0,0.8097]
[1753087348431,0.8081,3789.2,3788.9,2.63928844]
[1753087348432,0.46194487,3789.0,3788.9,2.63928844]
[1753087349601,0.46194487,3789.0,3788.8,2.63933325]
[1753087349798,0.429,3788.9,3788.8,2.63933325]
[1753087349997,0.429,3788.9,3788.8,2.6393581]
[1753087351534,4.877,3788.9,3788.8,2.6393581]
[1753087351738,4.448,3788.9,3788.8,2.6393581]
[1753087351938,0.03294487,3789.1,3789.0,2.63921879]
[1753087352141,5.03194487,3789.1,3789.0,2.63921879]
[1753087352337,5.59214487,3789.1,3789.0,2.63921879]
[1753087353849,1.14314487,3789.1,3789.0,2.63921879]
[1753087354144,5.59214487,3789.1,3789.0,2.63921879]
[1753087355705,0.71414487,3789.1,3789.0,2.63921879]
[1753087355911,5.16314487,3789.1,3789.0,2.63921879]
[1753087356441,5.59214487,3789.1,3789.0,2.63921879]
[1753087359065,5.16314487,3789.1,3789.0,2.63921879]
[1753087359928,1.14314487,3789.1,3789.0,2.63921879]
[1753087360126,0.16414487,3789.1,3789.0,3.16707065]
[1753087360463,1.2399,3790.5,3790.4,2.63824398]
[1753087360629,5.6879,3790.5,3790.4,2.63824398]
[1753087360822,5.6879,3790.5,3789.8,0.1312]
[1753087361028,0.16414487,3790.4,3790.3,2.63831358]
[1753087361258,0.602,3790.4,3790.3,2.63831358]
[1753087361463,5.6,3790.4,3790.3,2.63831358]
[1753087361675,0.80204487,3790.5,3790.4,2.63824398]
[1753087361941,4.448,3790.4,3790.3,2.63829471]
[1753087362188,1.2399,3790.5,3790.4,2.63824398]
[1753087362390,0.1312,3790.7,3790.6,2.63810478]
[1753087362545,4.448,3790.7,3789.7,3.39997478]
[1753087362740,4.448,3790.7,3790.6,2.63810478]
[1753087362980,0.1312,3790.8,3790.7,2.63803519]
[1753087363190,5.1292,3790.8,3790.7,2.63803519]
[1753087363367,4.5792,3790.8,3790.7,2.63803519]
[1753087363548,0.50374487,3791.1,3790.8,2.6379301]
[1753087363748,7.9188,3791.0,3790.9,2.63789048]
[1753087364081,0.6812,3791.2,3791.1,2.63775685]
[1753087364293,0.1312,3791.2,3791.1,2.63775685]
[1753087364444,1e-08,3791.3,3791.2,2.63768727]
[1753087364643,4.44700001,3791.3,3791.2,2.63768727]
[1753087365475,4.44700001,3791.3,3790.8,0.1312]
[1753087365476,0.55,3791.2,3790.8,0.1312]
[1753087365784,0.50374487,3791.1,3791.0,2.63782643]
[1753087365991,1e-08,3791.3,3791.1,2.63775685]
[1753087366143,1e-08,3791.3,3791.2,2.63768727]
[1753087366347,4.44700001,3791.3,3791.2,2.63768727]
[1753087366864,4.91780001,3791.3,3791.1,2.63774745]
[1753087367063,0.50374487,3791.2,3791.1,2.63775685]
[1753087367239,0.4708,3791.2,3791.1,2.63775685]
[1753087367679,4.44700001,3791.3,3791.2,2.63768727]
[1753087367844,4.44700001,3791.3,3791.2,2.76888727]
[1753087368347,4.91780001,3791.3,3791.2,2.63768727]
[1753087371592,4.44700001,3791.3,3791.2,2.63768727]
[1753087371789,1e-08,3791.3,3791.2,2.63768727]
[1753087371946,4.44500001,3791.3,3791.2,2.63768727]
[1753087372352,4.44400001,3791.3,3791.2,2.63768727]
[1753087373187,1e-08,3791.3,3791.2,3.96239654]
[1753087373377,4.44400001,3791.3,3791.2,4.30419654]
[1753087373916,1e-08,3791.3,3791.2,4.30419654]
[1753087374114,1e-08,3791.3,3791.2,7.30419654]
[1753087377368,1e-08,3791.3,3791.2,8.40439654]
[1753087378062,1e-08,3791.3,3791.2,8.74619654]
[1753087379466,1e-08,3791.3,3791.2,3.96239654]
[1753087379783,1e-08,3791.3,3791.2,2.63768727]
[1753087381507,0.47080001,3791.3,3791.2,2.63768727]
[1753087381890,4.91080001,3791.3,3791.2,2.63768727]
[1753087382915,1e-08,3791.3,3791.2,2.63768727]
[1753087383085,1e-08,3791.3,3791.2,2.76888727]
[1753087383086,4.44000001,3791.3,3791.2,2.76888727]
[1753087384924,4.91080001,3791.3,3791.2,2.76888727]
[1753087387727,4.44000001,3791.3,3791.2,2.76888727]
[1753087391404,4.89880001,3791.3,3791.2,2.76888727]
[1753087391715,4.44000001,3791.3,3791.2,2.76888727]
[1753087392495,4.89880001,3791.3,3791.2,2.76888727]
[1753087392729,4.89880001,3791.3,3791.2,2.63768727]
[1753087393138,4.44000001,3791.3,3791.2,2.63768727]
[1753087394547,4.44000001,3791.3,3791.2,3.16787062]
[1753087396322,4.44000001,3791.3,3791.2,2.63768727]
[1753087397526,4.89880001,3791.3,3791.2,2.63768727]
[1753087401626,0.45880001,3791.3,3791.2,2.63768727]
[1753087403114,1e-08,3791.3,3791.2,2.63768727]
[1753087403624,1e-08,3791.3,3791.2,2.76888727]
[1753087403846,1e-08,3791.3,3791.2,4.35609322]
[1753087408922,1e-08,3791.3,3791.2,2.76888727]
[1753087409118,0.45880001,3791.3,3791.2,2.63768727]
[1753087410364,4.88480001,3791.3,3791.0,0.1312]
[1753087410562,4.88480001,3791.3,3789.8,0.33999748]
[1753087410563,0.55,3790.9,3790.3,2.63825538]
[1753087410876,0.8264,3791.1,3789.6,2.63875496]
[1753087410877,0.55,3790.1,3789.6,2.63875496]
[1753087411026,0.6812,3789.9,3789.2,0.1312]
[1753087411226,0.55,3789.7,3789.3,2.63900984]
[1753087411567,0.6812,3789.9,3789.5,2.63887056]
[1753087411568,4.91674487,3789.6,3789.5,2.63887056]
[1753087412003,4.91674487,3789.6,3789.2,0.1312]
[1753087412303,4.45794487,3789.6,3789.5,2.63887056]
[1753087412808,0.1312,3789.9,3789.2,0.1312]
[1753087412809,0.16414487,3789.9,3789.8,2.63866167]
[1753087413022,4.58814487,3789.9,3789.8,2.63866167]
[1753087413458,5.04694487,3789.9,3789.8,2.63866167]
[1753087415413,0.7548,3790.4,3790.3,2.63831358]
[1753087415573,5.309,3790.4,3790.3,2.63831358]
[1753087415917,5.7678,3790.4,3790.3,2.63831358]
[1753087416912,1.3448,3790.4,3790.3,2.63831358]
[1753087417059,5.7678,3790.4,3790.3,2.63831358]
[1753087417809,0.55,3790.8,3790.6,2.63805785]
[1753087417810,1.83124487,3790.8,3790.6,2.63805785]
[1753087417988,5.1042,3790.7,3790.6,2.63810478]
[1753087418306,0.55,3790.6,3789.5,2.63885804]
[1753087418610,0.1312,3790.4,3790.1,2.63839756]
[1753087418812,4.422,3790.3,3790.2,2.63837987]
[1753087419121,4.8808,3790.3,3790.1,2.63842867]
[1753087419273,0.4588,3790.2,3790.1,2.63843516]
[1753087419918,0.55,3789.9,3789.3,2.6390039]
[1753087420212,0.7635,3789.6,3789.4,2.6389402]
[1753087420523,1.3135,3789.6,3789.5,2.63887056]
[1753087420702,5.7345,3789.6,3789.5,2.63887056]
[1753087421015,6.168,3789.6,3789.5,2.63887056]
[1753087421463,5.618,3789.6,3789.5,2.63887056]
[1753087421666,0.7635,3789.6,3789.5,2.63887056]
[1753087421880,0.55,3789.9,3789.8,2.638639]
[1753087422217,4.42,3789.9,3789.8,2.638639]
[1753087422516,0.7776,3790.0,3789.9,2.63859204]
[1753087422817,1.36054487,3790.3,3790.2,2.63838319]
[1753087422987,8.78054487,3790.3,3790.2,2.63838319]
[1753087423191,0.55,3790.2,3789.1,0.001]
[1753087423508,0.55,3790.0,3789.1,2.64014769]
[1753087423711,4.419,3789.9,3789.8,2.63864536]
[1753087424923,0.03294487,3790.2,3790.1,2.63845281]
[1753087425237,1.1876,3790.9,3789.9,3.43316611]
[1753087425531,0.4335,3790.6,3790.4,2.63820038]
[1753087425737,3.0,3790.7,3790.4,2.63820038]
[1753087425942,0.4335,3790.5,3790.4,2.63820038]
[1753087426237,4.418,3790.5,3790.4,0.5276561]
[1753087426404,4.418,3790.5,3790.4,2.63824398]
[1753087428148,0.03294487,3791.0,3790.9,2.63789601]
[1753087428449,0.03294487,3791.0,3789.9,0.7946]
[1753087428450,0.9835,3790.9,3790.5,2.63817237]
[1753087428607,0.55,3790.7,3790.5,2.63817237]
[1753087428808,4.44894487,3790.6,3790.5,2.63817237]
[1753087429041,4.88244487,3790.6,3790.5,2.63817237]
[1753087429247,4.8495,3790.6,3790.5,2.63817237]
[1753087429448,0.55,3790.5,3790.1,2.63838325]
[1753087429651,0.46644487,3790.4,3790.2,2.63837707]
[1753087429851,0.55,3790.2,3789.1,0.78651477]
[1753087430169,1.37774487,3790.1,3789.7,2.63866768]
[1753087430328,4.415,3790.0,3789.6,2.63877388]
[1753087430506,0.46644487,3789.9,3789.8,2.63866167]
[1753087430911,0.46644487,3789.9,3789.7,2.63870578]
[1753087431106,0.46644487,3789.9,3789.5,0.1312]
[1753087431107,0.03294487,3789.9,3789.8,2.63866167]
[1753087431554,0.03294487,3789.9,3789.5,0.1312]
[1753087431555,1.4613,3790.1,3790.0,2.63852242]
[1753087431716,6.3088,3790.1,3790.0,2.63852242]
[1753087432259,4.414,3790.1,3790.0,2.63845303]
[1753087435052,4.8475,3790.1,3790.0,2.63845303]
[1753087435623,0.71414487,3790.4,3790.3,2.63831358]
[1753087435948,3.0,3790.3,3790.2,2.63834155]
[1753087436250,5.0932,3790.4,3790.3,2.63831358]
[1753087436413,5.12614487,3790.4,3790.3,2.63831358]
[1753087436836,5.12614487,3790.4,3789.2,7.7528]
[1753087436837,1.3252,3790.3,3788.7,0.7516]
[1753087437038,3.55,3789.7,3788.4,0.7516]
[1753087437347,1.3208,3789.2,3788.4,2.63962027]
[1753087437552,8.37087948,3789.2,3788.3,2.6406874]
[1753087437749,8.37087948,3789.2,3788.3,0.001]
[1753087438063,8.80437948,3789.2,3788.4,2.6396132]
[1753087438265,8.80437948,3789.2,3788.5,2.63956402]
[1753087438467,8.80437948,3789.2,3788.4,2.6396187]
[1753087438971,8.80437948,3789.2,3788.3,0.001]
[1753087439178,11.80437948,3789.2,3788.3,0.001]
[1753087440351,11.80437948,3789.2,3788.4,2.63958704]
[1753087440552,9.1643,3789.2,3788.7,2.63937047]
[1753087440876,9.1643,3789.2,3788.5,2.63955598]
[1753087440877,9.1643,3789.2,3788.6,2.63948716]
[1753087441177,9.1643,3789.2,3788.7,2.63941319]
[1753087441476,11.80337948,3789.2,3788.5,2.63952023]
[1753087441774,9.1633,3789.2,3788.4,2.63963138]
[1753087442080,9.1633,3789.2,3788.8,2.63935307]
[1753087442448,4.3208,3789.2,3788.9,2.63928673]
[1753087442644,8.7298,3789.2,3789.0,2.63919183]
[1753087442966,8.7298,3789.2,3789.0,2.63919467]
[1753087443164,9.1633,3789.2,3789.0,2.63919467]
[1753087443347,9.1633,3789.2,3788.9,2.63927286]
[1753087443541,0.002,3789.9,3789.4,2.63891641]
[1753087443878,3.0,3789.7,3789.4,2.63892549]
[1753087444175,3.55,3789.5,3789.4,2.63892549]
[1753087444679,0.03294487,3789.5,3789.4,2.63892549]
[1753087444983,4.957,3789.5,3789.4,2.63892549]
[1753087445161,0.03294487,3789.7,3789.6,2.63880092]
[1753087445349,0.58494487,3789.9,3789.2,2.63907948]
[1753087445554,0.002,3789.9,3789.8,2.63866167]
[1753087445877,4.408,3789.9,3789.8,2.63866167]
[1753087446449,4.8415,3789.9,3789.8,2.63866167]
[1753087446776,4.8415,3789.9,3789.2,0.29818795]
[1753087447086,0.03294487,3789.8,3789.7,2.63870634]
[1753087447275,4.405,3789.8,3789.7,2.63870634]
[1753087447794,4.8385,3789.8,3789.7,2.63873129]
[1753087447942,4.8385,3789.8,3789.6,2.63874303]
[1753087448141,0.03294487,3789.7,3789.6,2.63880092]
[1753087448882,0.46644487,3789.7,3789.6,2.63880092]
[1753087449489,0.03294487,3789.7,3789.6,2.63880092]
[1753087449873,0.46644487,3789.7,3789.2,0.1312]
[1753087450111,4.8365,3789.6,3789.2,0.1312]
[1753087450400,0.03294487,3789.5,3789.4,2.6389402]
[1753087453079,4.403,3789.6,3789.5,2.63887056]
[1753087454873,4.403,3789.6,3789.2,0.1312]
[1753087454874,0.55,3789.5,3789.2,0.1312]
[1753087455230,0.6812,3789.3,3789.1,2.64014067]
[1753087455367,4.399,3789.2,3789.1,0.001]
[1753087455573,4.399,3789.2,3789.1,2.64014913]
[1753087460172,4.8371,3789.2,3789.1,2.64014913]
[1753087462092,4.399,3789.2,3789.1,2.64014913]
[1753087463215,4.8371,3789.2,3789.1,2.64014913]
[1753087463509,5.3871,3789.2,3789.1,2.64014913]
[1753087463885,5.3871,3789.2,3789.1,0.001]
[1753087465112,5.3871,3789.2,3789.1,2.64014913]
[1753087465615,5.3871,3789.2,3789.1,0.001]
[1753087466409,5.3871,3789.2,3789.1,2.64014913]
[1753087466612,0.1312,3789.3,3789.2,2.63907948]
[1753087466815,5.0722,3789.3,3789.2,2.63907948]
[1753087467500,5.0712,3789.3,3789.2,2.63907948]
[1753087467922,0.1312,3789.3,3789.2,2.63907948]
[1753087468212,0.002,3789.9,3789.8,2.63866167]
[1753087468428,4.391,3789.9,3789.8,2.63866167]
[1753087468776,4.8291,3789.9,3789.8,2.63866167]
[1753087469209,5.3791,3789.9,3789.8,2.63866167]
[1753087470101,0.6812,3789.8,3789.7,2.63872099]
[1753087470299,1.1193,3789.8,3789.7,2.63873129]
[1753087471022,1.1193,3789.8,3789.4,2.6388716]
[1753087471179,4.388,3789.7,3789.4,2.6388716]
[1753087471380,0.4381,3789.6,3789.5,2.63887056]
[1753087474016,4.388,3789.7,3789.6,2.63880092]
[1753087474223,0.1312,3789.7,3789.6,2.63880092]